[Event "SVK-ch GM 2018"]
[Site "Banska Stiavnica"]
[Date "2018.07.08"]
[Round "2"]
[White "Mazur, Stefan"]
[Black "Nayhebaver, Martin"]
[Result "0-1"]
[ECO "B96"]
[WhiteElo "2425"]
[BlackElo "2478"]
[Annotator "ChessBase"]
[PlyCount "64"]
[EventDate "2018.07.07"]
[EventType "tourn"]
[EventCountry "SVK"]
[SourceTitle "playchess.com"]
[Source "ChessBase"]
[SourceQuality "1"]
[TimeControl "40/5400+30:1800+30"]

1. e4 {[%emt 0:00:00]} c5 {[%emt 0:00:00]} 2. Nf3 {[%emt 0:00:11]} d6 {[%emt 0:00:19]} 3. d4 {[%emt 0:00:10]} cxd4 {[%emt 0:00:06]} 4. Nxd4 {[%emt 0:00:06]} Nf6 {[%emt 0:00:14]} 5. Nc3 {[%emt 0:00:06]} a6 {[%emt 0:00:26]} 6. Bg5 {[%emt 0:00:38]} e6 {[%emt 0:01:11]} 7. f4 {[%emt 0:00:23]} h6 {[%emt 0:00:46]} 8. Bh4 {[%emt 0:01:03]} Qb6 {[%emt 0:00:24]} 9. Qd2 {[%emt 0:01:26]} Qxb2 {[%emt 0:01:15]} 10. Rb1 {[%emt 0:00:29]} Qa3 {[%emt 0:00:07]} 11. e5 {[%emt 0:02:31]} dxe5 {[%emt 0:00:38]} 12. fxe5 {[%emt 0:00:22]} Nfd7 {[%emt 0:00:21]} 13. Ne4 {[%emt 0:05:56]} Qxa2 {[%emt 0:01:09]} 14. Rd1 {[%emt 0:00:06]} Qd5 {[%emt 0:00:27]} 15. Qe3 {[%emt 0:02:06]} Qxe5 {[%emt 0:01:39]} 16. Be2 {[%emt 0:05:01]} Bc5 {[%emt 0:03:24]} 17. c3 {[%emt 0:06:39]} O-O {[%emt 0:07:07]} 18. g4 {[%emt 0:03:20]} Nc6 {[%emt 0:09:25]} 19. Rg1 {[%emt 0:11:41]} f5 {[%emt 0:19:03]} 20. gxf5 {[%emt 0:07:18]} Nxd4 {[%emt 0:02:25]} 21. Rxd4 {[%emt 0:25:41]} Bxd4 {[%emt 0:03:13]} 22. cxd4 {[%emt 0:02:10]} Qxf5 {[%emt 0:01:57]} 23. Bd3 {[%emt 0:07:58]} Qf4 {[%emt 0:04:33]} 24. Qxf4 {[%emt 0:06:29]} Rxf4 {[%emt 0:00:52]} 25. Bg3 {[%emt 0:00:10]} Rf8 {[%emt 0:00:58]} 26. Bc4 {[%emt 0:00:59]} Nb6 {[%emt 0:03:37]} 27. Be5 {[%emt 0:00:26]} Rf7 {[%emt 0:00:12]} 28. Bb3 {[%emt 0:09:22]} Nd7 {[%emt 0:09:30]} 29. Bg3 {[%emt 0:01:11]} Nf6 {[%emt 0:03:41]} 30. Nxf6+ {[%emt 0:00:17]} gxf6 {[%emt 0:01:17]} 31. d5 {[%emt 0:00:17]} Kh8 {[%emt 0:00:52]} 32. dxe6 {[%emt 0:00:41]} Bxe6 {[%emt 0:00:15]} 0-1

[Event "SVK-ch GM 2018"]
[Site "Banska Stiavnica"]
[Date "2018.07.09"]
[Round "3"]
[White "Repka, Christopher"]
[Black "Gazik, Viktor"]
[Result "1-0"]
[ECO "A49"]
[WhiteElo "2519"]
[BlackElo "2490"]
[Annotator "ChessBase"]
[PlyCount "77"]
[EventDate "2018.07.07"]
[EventType "tourn"]
[EventCountry "SVK"]
[SourceTitle "playchess.com"]
[Source "ChessBase"]
[SourceQuality "1"]
[TimeControl "40/5400+30:1800+30"]

1. Nf3 {[%emt 0:00:00]} Nf6 {[%emt 0:00:24]} 2. d4 {[%emt 0:00:00]} g6 {[%emt 0:01:02]} 3. g3 {[%emt 0:00:00]} Bg7 {[%emt 0:00:52]} 4. Bg2 {[%emt 0:00:00]} O-O {[%emt 0:00:08]} 5. O-O {[%emt 0:00:00]} d6 {[%emt 0:00:28]} 6. c4 {[%emt 0:00:00]} c5 {[%emt 0:02:41]} 7. dxc5 {[%emt 0:01:11]} dxc5 {[%emt 0:00:41]} 8. Qxd8 {[%emt 0:00:20]} Rxd8 {[%emt 0:00:15]} 9. Ne5 {[%emt 0:00:03]} Ne8 {[%emt 0:16:12]} 10. Nd3 {[%emt 0:03:25]} Na6 {[%emt 0:00:44]} 11. Nc3 {[%emt 0:02:58]} Bxc3 {[%emt 0:11:22]} 12. bxc3 {[%emt 0:01:02]} Nd6 {[%emt 0:00:04]} 13. Bg5 {[%emt 0:09:00]} f6 {[%emt 0:05:01]} 14. Bd5+ {[%emt 0:00:33]} Kg7 {[%emt 0:03:43]} 15. Be3 {[%emt 0:02:08]} e6 {[%emt 0:02:00]} 16. Bg2 {[%emt 0:00:57]} Nf5 {[%emt 0:04:43]} 17. Bc1 {[%emt 0:01:53]} Rb8 {[%emt 0:10:16]} 18. Rd1 {[%emt 0:01:24]} Nd6 {[%emt 0:07:10]} 19. Bf4 {[%emt 0:01:38]} g5 {[%emt 0:00:06]} 20. Bxd6 {[%emt 0:01:32]} Rxd6 {[%emt 0:00:02]} 21. f4 {[%emt 0:00:08]} Bd7 {[%emt 0:08:50]} 22. Nb4 {[%emt 0:06:26]} Rxd1+ {[%emt 0:00:52]} 23. Rxd1 {[%emt 0:00:06]} Ba4 {[%emt 0:00:52]} 24. Nxa6 {[%emt 0:00:21]} bxa6 {[%emt 0:00:08]} 25. Rd2 {[%emt 0:00:30]} gxf4 {[%emt 0:03:52]} 26. gxf4 {[%emt 0:00:06]} f5 {[%emt 0:08:30]} 27. Kf2 {[%emt 0:00:39]} Kf6 {[%emt 0:00:09]} 28. Rd3 {[%emt 0:00:56]} Rb2 {[%emt 0:01:42]} 29. Rd6 {[%emt 0:00:32]} Rb6 {[%emt 0:01:43]} 30. Rd8 {[%emt 0:01:03]} Rb2 {[%emt 0:00:44]} 31. Rf8+ {[%emt 0:02:53]} Kg6 {[%emt 0:00:31]} 32. Rc8 {[%emt 0:00:04]} Rxa2 {[%emt 0:01:38]} 33. Rxc5 {[%emt 0:00:08]} Rc2 {[%emt 0:05:07]} 34. Ra5 {[%emt 0:04:34]} Bb3 {[%emt 0:00:01]} 35. c5 {[%emt 0:00:23]} Bc4 36. c6 {[%emt 0:03:59]} Rxe2+ {[%emt 0:01:28]} 37. Kg3 {[%emt 0:01:56]} Re3+ {[%emt 0:00:02]} 38. Kh4 {[%emt 0:00:31]} Bb5 39. c4 1-0

[Event "SVK-ch GM 2018"]
[Site "Banska Stiavnica"]
[Date "2018.07.09"]
[Round "3"]
[White "Nayhebaver, Martin"]
[Black "Pechac, Jergus"]
[Result "0-1"]
[ECO "B06"]
[WhiteElo "2478"]
[BlackElo "2435"]
[Annotator "ChessBase"]
[PlyCount "84"]
[EventDate "2018.07.07"]
[EventType "tourn"]
[EventCountry "SVK"]
[SourceTitle "playchess.com"]
[Source "ChessBase"]
[SourceQuality "1"]
[TimeControl "40/5400+30:1800+30"]

1. e4 {[%emt 0:00:00]} g6 {[%emt 0:01:16]} 2. d4 {[%emt 0:00:41]} Bg7 {[%emt 0:00:20]} 3. Nf3 {[%emt 0:05:07]} d6 {[%emt 0:00:11]} 4. Bc4 {[%emt 0:02:18]} Nf6 {[%emt 0:01:15]} 5. e5 {[%emt 0:01:07]} dxe5 {[%emt 0:00:37]} 6. Nxe5 {[%emt 0:00:08]} O-O {[%emt 0:00:29]} 7. O-O {[%emt 0:01:07]} Nbd7 {[%emt 0:03:32]} 8. Nf3 {[%emt 0:20:43]} c5 {[%emt 0:01:43]} 9. dxc5 {[%emt 0:06:04]} Nxc5 {[%emt 0:00:25]} 10. Qe2 {[%emt 0:00:15]} a6 {[%emt 0:06:37]} 11. a4 {[%emt 0:02:26]} Qc7 {[%emt 0:02:12]} 12. Nc3 {[%emt 0:02:09]} Rd8 {[%emt 0:03:59]} 13. Re1 {[%emt 0:03:10]} e6 {[%emt 0:05:01]} 14. Bg5 {[%emt 0:03:14]} b6 {[%emt 0:08:20]} 15. Ne5 {[%emt 0:05:45]} h6 {[%emt 0:06:42]} 16. Bh4 {[%emt 0:04:44]} Rd4 {[%emt 0:03:22]} 17. Nf3 {[%emt 0:04:34]} Rd8 {[%emt 0:00:06]} 18. b4 {[%emt 0:06:40]} Ncd7 {[%emt 0:06:04]} 19. Ne4 {[%emt 0:05:12]} Bb7 {[%emt 0:02:34]} 20. Bg3 {[%emt 0:01:40]} Qc6 {[%emt 0:00:07]} 21. Nxf6+ {[%emt 0:05:00]} Nxf6 {[%emt 0:00:34]} 22. Be5 {[%emt 0:00:58]} Qe4 {[%emt 0:02:28]} 23. Qxe4 {[%emt 0:04:21]} Nxe4 {[%emt 0:03:46]} 24. Bd3 {[%emt 0:00:21]} Nc3 {[%emt 0:01:06]} 25. Ra3 {[%emt 0:03:05]} Rac8 {[%emt 0:02:25]} 26. Bxg7 {[%emt 0:02:29]} Kxg7 {[%emt 0:00:07]} 27. Ne5 {[%emt 0:07:18]} Rd4 {[%emt 0:25:27]} 28. b5 {[%emt 0:00:16]} a5 {[%emt 0:00:09]} 29. Nc6 {[%emt 0:00:09]} Bxc6 {[%emt 0:00:04]} 30. Rxc3 {[%emt 0:00:06]} Bb7 {[%emt 0:00:03]} 31. Ra3 {[%emt 0:02:12]} Kf6 {[%emt 0:01:50]} 32. f3 {[%emt 0:00:14]} Rh4 {[%emt 0:02:12]} 33. h3 {[%emt 0:01:16]} h5 {[%emt 0:03:25]} 34. Kf2 {[%emt 0:00:18]} g5 {[%emt 0:00:26]} 35. Rd1 {[%emt 0:00:53]} Rb4 {[%emt 0:01:09]} 36. Ke3 {[%emt 0:00:45]} Ke5 {[%emt 0:00:52]} 37. Rd2 {[%emt 0:00:57]} g4 {[%emt 0:00:54]} 38. g3 {[%emt 0:00:42]} gxf3 {[%emt 0:01:20]} 39. c3 {[%emt 0:00:10]} h4 {[%emt 0:00:05]} 40. cxb4 {[%emt 0:00:35]} hxg3 {[%emt 0:00:05]} 41. Rc2 {[%emt 0:10:31]} Rxc2 {[%emt 0:01:35]} 42. Bxc2 {[%emt 0:02:00]} f5 {[%emt 0:00:13] Kd4+} 0-1

[Event "SVK-ch GM 2018"]
[Site "Banska Stiavnica"]
[Date "2018.07.09"]
[Round "3"]
[White "Manik, Mikulas"]
[Black "Petenyi, Tamas"]
[Result "1-0"]
[ECO "B06"]
[WhiteElo "2400"]
[BlackElo "2450"]
[Annotator "ChessBase"]
[PlyCount "75"]
[EventDate "2018.07.07"]
[EventType "tourn"]
[EventCountry "SVK"]
[SourceTitle "playchess.com"]
[Source "ChessBase"]
[SourceQuality "1"]
[TimeControl "40/5400+30:1800+30"]

1. e4 {[%emt 0:00:29]} g6 {[%emt 0:00:09]} 2. d4 {[%emt 0:00:06]} Bg7 {[%emt 0:00:04]} 3. Nc3 {[%emt 0:00:03]} d6 {[%emt 0:00:05]} 4. Be3 {[%emt 0:00:14]} Nc6 {[%emt 0:00:26]} 5. Qd2 {[%emt 0:00:52]} e5 {[%emt 0:02:31]} 6. Nge2 {[%emt 0:00:14]} exd4 {[%emt 0:00:54]} 7. Nxd4 {[%emt 0:00:11]} Nf6 {[%emt 0:00:07]} 8. f3 {[%emt 0:02:58]} O-O {[%emt 0:02:11]} 9. O-O-O {[%emt 0:06:52]} Nxd4 {[%emt 0:01:41]} 10. Bxd4 {[%emt 0:02:58]} Be6 {[%emt 0:04:19]} 11. Be3 {[%emt 0:06:48]} Re8 {[%emt 0:04:17]} 12. Bg5 {[%emt 0:05:24]} Qb8 {[%emt 0:07:09]} 13. g4 {[%emt 0:18:09]} Nd7 {[%emt 0:04:33]} 14. Bh6 {[%emt 0:13:07]} Bh8 {[%emt 0:06:35]} 15. h4 {[%emt 0:06:19]} Ne5 {[%emt 0:04:50]} 16. Be2 {[%emt 0:09:12]} b5 {[%emt 0:02:51]} 17. h5 {[%emt 0:06:00]} b4 {[%emt 0:12:36]} 18. Na4 {[%emt 0:04:35]} Qb7 {[%emt 0:07:23]} 19. b3 {[%emt 0:02:51]} a5 {[%emt 0:01:25]} 20. Kb1 {[%emt 0:02:21]} Qc6 {[%emt 0:00:43]} 21. Be3 {[%emt 0:02:49]} Rad8 {[%emt 0:02:49]} 22. Bd4 {[%emt 0:00:36]} Bg7 {[%emt 0:04:52]} 23. hxg6 {[%emt 0:00:23]} fxg6 {[%emt 0:00:51]} 24. f4 {[%emt 0:00:56]} Qxe4 {[%emt 0:03:20]} 25. fxe5 {[%emt 0:00:08]} dxe5 {[%emt 0:05:36]} 26. Nc5 {[%emt 0:00:12]} Qc6 {[%emt 0:02:04]} 27. Nxe6 {[%emt 0:00:32]} Rxe6 {[%emt 0:00:07]} 28. Bc4 {[%emt 0:02:55]} Rxd4 {[%emt 0:00:10]} 29. Qh2 {[%emt 0:02:30]} Rxc4 {[%emt 0:01:57]} 30. Qxh7+ {[%emt 0:00:17]} Kf7 {[%emt 0:00:04]} 31. bxc4 {[%emt 0:00:08]} Rf6 {[%emt 0:04:55]} 32. g5 {[%emt 0:02:51]} Rf2 {[%emt 0:04:25]} 33. Rd8 {[%emt 0:00:35]} Ke6 {[%emt 0:01:50]} 34. Qxg6+ {[%emt 0:00:52]} Rf6 {[%emt 0:03:12]} 35. gxf6 {[%emt 0:00:27]} Qxh1+ {[%emt 0:00:07]} 36. Kb2 {[%emt 0:00:02]} Bh6 {[%emt 0:01:34]} 37. f7+ {[%emt 0:00:09]} Ke7 {[%emt 0:00:03]} 38. Re8+ {[%emt 0:00:05]} 1-0

[Event "SVK-ch GM 2018"]
[Site "Banska Stiavnica"]
[Date "2018.07.09"]
[Round "3"]
[White "Zvarik, Martin"]
[Black "Petrik, Tomas"]
[Result "1/2-1/2"]
[ECO "A06"]
[WhiteElo "2280"]
[BlackElo "2470"]
[Annotator "ChessBase"]
[PlyCount "77"]
[EventDate "2018.07.07"]
[EventType "tourn"]
[EventCountry "SVK"]
[SourceTitle "playchess.com"]
[Source "ChessBase"]
[SourceQuality "1"]
[TimeControl "40/5400+30:1800+30"]

1. g3 {[%emt 0:17:26]} d5 {[%emt 0:02:55]} 2. Nf3 {[%emt 0:00:28]} c6 {[%emt 0:00:40]} 3. Bg2 {[%emt 0:00:25]} Bg4 {[%emt 0:01:47]} 4. O-O {[%emt 0:01:18]} Nd7 {[%emt 0:00:22]} 5. h3 {[%emt 0:01:55]} Bxf3 {[%emt 0:07:49]} 6. Bxf3 {[%emt 0:00:07]} Ngf6 {[%emt 0:03:48]} 7. d3 {[%emt 0:00:26]} e5 {[%emt 0:06:09]} 8. e4 {[%emt 0:00:16]} dxe4 {[%emt 0:03:48]} 9. dxe4 {[%emt 0:02:35]} Bc5 {[%emt 0:00:37]} 10. Qe2 {[%emt 0:02:39]} O-O {[%emt 0:01:38]} 11. a4 {[%emt 0:00:52]} a5 {[%emt 0:03:28]} 12. Nd2 {[%emt 0:03:29]} Qe7 {[%emt 0:08:16]} 13. Nc4 {[%emt 0:02:38]} Nb6 {[%emt 0:14:22]} 14. Ne3 {[%emt 0:05:56]} Qe6 {[%emt 0:01:03]} 15. Kg2 {[%emt 0:10:06]} Rfd8 {[%emt 0:02:04]} 16. Bd2 {[%emt 0:04:30]} Rd4 {[%emt 0:16:37]} 17. Qe1 {[%emt 0:10:39]} Rxa4 {[%emt 0:13:57]} 18. Rxa4 {[%emt 0:00:42]} Nxa4 {[%emt 0:00:02]} 19. b3 {[%emt 0:00:28]} Nb6 {[%emt 0:00:12]} 20. Bxa5 {[%emt 0:00:41]} Nc8 {[%emt 0:02:15]} 21. Bb4 {[%emt 0:10:33]} Bb6 {[%emt 0:03:50]} 22. Qd2 {[%emt 0:03:44]} Na7 {[%emt 0:02:31]} 23. Nf5 {[%emt 0:05:26]} g6 {[%emt 0:02:09]} 24. Qg5 {[%emt 0:04:44]} Kh8 {[%emt 0:00:41]} 25. Rd1 {[%emt 0:02:09]} Nb5 {[%emt 0:00:30]} 26. Nd6 {[%emt 0:04:58]} Bc7 {[%emt 0:00:59]} 27. Nxb7 {[%emt 0:02:12]} Kg7 {[%emt 0:00:04]} 28. Nc5 {[%emt 0:00:47]} Qe8 {[%emt 0:00:09]} 29. Rd2 {[%emt 0:01:18]} Bd6 {[%emt 0:01:10]} 30. Nd3 {[%emt 0:00:52]} Bxb4 {[%emt 0:00:32]} 31. Nxb4 {[%emt 0:00:02]} Nd4 {[%emt 0:00:10]} 32. Nd3 {[%emt 0:00:38]} Ra5 {[%emt 0:00:53]} 33. b4 {[%emt 0:00:29]} h6 {[%emt 0:00:25]} 34. Qe3 {[%emt 0:00:12]} Ra3 {[%emt 0:00:02]} 35. Bd1 {[%emt 0:01:09]} Nb5 {[%emt 0:00:55]} 36. Qe1 {[%emt 0:00:38]} Ra1 {[%emt 0:00:38]} 37. Qe3 {[%emt 0:00:20]} Ra3 {[%emt 0:00:14]} 38. Qe1 {[%emt 0:00:04]} Ra1 {[%emt 0:00:30]} 39. Qe3 {[%emt 0:00:22]} 1/2-1/2

[Event "SVK-ch GM 2018"]
[Site "Banska Stiavnica"]
[Date "2018.07.10"]
[Round "4"]
[White "Gazik, Viktor"]
[Black "Manik, Mikulas"]
[Result "0-1"]
[ECO "B23"]
[WhiteElo "2490"]
[BlackElo "2400"]
[Annotator "ChessBase"]
[PlyCount "58"]
[EventDate "2018.07.07"]
[EventType "tourn"]
[EventCountry "SVK"]
[SourceTitle "playchess.com"]
[Source "ChessBase"]
[SourceQuality "1"]
[TimeControl "40/5400+30:1800+30"]

1. e4 {[%emt 0:00:00]} c5 {[%emt 0:00:00]} 2. Nc3 {[%emt 0:00:00]} a6 {[%emt 0:00:00]} 3. f4 {[%emt 0:05:18]} Nc6 {[%emt 0:03:12]} 4. Nf3 {[%emt 0:00:21]} e6 {[%emt 0:11:22]} 5. d3 {[%emt 0:06:22]} d5 {[%emt 0:02:55]} 6. g3 {[%emt 0:01:20]} dxe4 {[%emt 0:02:17]} 7. dxe4 {[%emt 0:05:15]} Qxd1+ {[%emt 0:01:51]} 8. Nxd1 {[%emt 0:00:17]} Nf6 {[%emt 0:05:31]} 9. e5 {[%emt 0:06:47]} Nd5 {[%emt 0:00:17]} 10. c4 {[%emt 0:06:13]} Nde7 {[%emt 0:06:28]} 11. Ne3 {[%emt 0:08:46]} Nf5 {[%emt 0:02:14]} 12. Bd3 {[%emt 0:13:33]} Be7 {[%emt 0:22:15]} 13. Kf2 {[%emt 0:17:33]} Nxe3 {[%emt 0:11:36]} 14. Bxe3 {[%emt 0:00:20]} Bd7 {[%emt 0:00:07]} 15. Rad1 {[%emt 0:02:53]} O-O-O {[%emt 0:06:05]} 16. h4 {[%emt 0:06:10]} h6 {[%emt 0:01:37]} 17. g4 {[%emt 0:00:39]} b6 {[%emt 0:09:17]} 18. h5 {[%emt 0:00:36]} f6 {[%emt 0:03:00]} 19. exf6 {[%emt 0:08:10]} Bxf6 {[%emt 0:01:10]} 20. b3 {[%emt 0:02:14]} e5 {[%emt 0:00:06]} 21. f5 {[%emt 0:00:03]} Nb4 {[%emt 0:00:10]} 22. Bb1 {[%emt 0:00:52]} Bc6 {[%emt 0:01:58]} 23. a3 {[%emt 0:00:13]} e4 {[%emt 0:00:19]} 24. axb4 {[%emt 0:05:17]} exf3 {[%emt 0:00:06]} 25. Bc2 {[%emt 0:00:01]} Rhe8 {[%emt 0:03:47]} 26. bxc5 {[%emt 0:01:03]} bxc5 {[%emt 0:00:07]} 27. Rxd8+ {[%emt 0:00:15]} Rxd8 {[%emt 0:00:36]} 28. Kg3 {[%emt 0:02:05]} Re8 29. Re1 Bc3 0-1

[Event "SVK-ch GM 2018"]
[Site "Banska Stiavnica"]
[Date "2018.07.10"]
[Round "4"]
[White "Petrik, Tomas"]
[Black "Nayhebaver, Martin"]
[Result "1/2-1/2"]
[ECO "A05"]
[WhiteElo "2470"]
[BlackElo "2478"]
[Annotator "ChessBase"]
[PlyCount "81"]
[EventDate "2018.07.07"]
[EventType "tourn"]
[EventCountry "SVK"]
[SourceTitle "playchess.com"]
[Source "ChessBase"]
[SourceQuality "1"]
[TimeControl "40/5400+30:1800+30"]

1. Nf3 {[%emt 0:00:03]} Nf6 {[%emt 0:00:00]} 2. c4 {[%emt 0:00:39]} e6 {[%emt 0:00:32]} 3. g3 {[%emt 0:00:42]} b6 {[%emt 0:00:17]} 4. Bg2 {[%emt 0:00:09]} Bb7 {[%emt 0:00:04]} 5. O-O {[%emt 0:01:13]} Be7 {[%emt 0:00:20]} 6. d4 {[%emt 0:01:04]} O-O {[%emt 0:00:34]} 7. Re1 {[%emt 0:01:41]} d5 {[%emt 0:03:55]} 8. cxd5 {[%emt 0:02:45]} exd5 {[%emt 0:01:05]} 9. Nc3 {[%emt 0:01:24]} Na6 {[%emt 0:02:19]} 10. Bf4 {[%emt 0:02:43]} Re8 {[%emt 0:03:20]} 11. Rc1 {[%emt 0:05:35]} h6 {[%emt 0:02:38]} 12. Ne5 {[%emt 0:28:15]} c5 {[%emt 0:02:41]} 13. dxc5 {[%emt 0:08:23]} Nxc5 {[%emt 0:02:55]} 14. Nd3 {[%emt 0:02:54]} Qd7 {[%emt 0:03:33]} 15. Be5 {[%emt 0:08:40]} d4 {[%emt 0:11:55]} 16. Bxb7 {[%emt 0:07:12]} Nxb7 {[%emt 0:01:14]} 17. Nb1 {[%emt 0:01:00]} Ne4 {[%emt 0:11:17]} 18. Nd2 {[%emt 0:04:18]} Nxd2 {[%emt 0:03:51]} 19. Qxd2 {[%emt 0:00:04]} Na5 {[%emt 0:02:49]} 20. Qd1 {[%emt 0:12:04]} Rac8 {[%emt 0:02:47]} 21. Bf4 {[%emt 0:00:37]} Rxc1 {[%emt 0:03:53]} 22. Bxc1 {[%emt 0:00:34]} Qd5 {[%emt 0:13:29]} 23. Qa4 {[%emt 0:02:11]} Rc8 {[%emt 0:00:50]} 24. Bd2 {[%emt 0:00:47]} Bg5 {[%emt 0:02:41]} 25. Rc1 {[%emt 0:04:21]} Rxc1+ {[%emt 0:00:47]} 26. Bxc1 {[%emt 0:00:02]} Bxc1 {[%emt 0:01:34]} 27. Nxc1 {[%emt 0:00:03]} Qe4 {[%emt 0:00:16]} 28. Nd3 {[%emt 0:02:45]} Qxe2 {[%emt 0:04:39]} 29. Qxd4 {[%emt 0:00:05]} Nc6 {[%emt 0:00:05]} 30. Qd7 {[%emt 0:01:10]} Qe4 {[%emt 0:00:15]} 31. Nf4 {[%emt 0:01:33]} Ne5 {[%emt 0:02:28]} 32. Qd5 {[%emt 0:00:31]} Qb1+ {[%emt 0:04:57]} 33. Kg2 {[%emt 0:00:02]} Qxb2 {[%emt 0:00:05]} 34. Qa8+ {[%emt 0:00:11]} Kh7 {[%emt 0:00:01]} 35. Qxa7 {[%emt 0:00:10]} g5 {[%emt 0:02:51]} 36. Nd3 {[%emt 0:01:37]} Nxd3 {[%emt 0:01:08]} 37. Qxf7+ {[%emt 0:00:03]} Qg7 {[%emt 0:00:06]} 38. Qf5+ {[%emt 0:00:36]} Qg6 {[%emt 0:00:09]} 39. Qd7+ {[%emt 0:00:02]} Kg8 {[%emt 0:00:23]} 40. Qd8+ {[%emt 0:00:05]} Kf7 {[%emt 0:00:09]} 41. Qd7+ {[%emt 0:30:27]} 1/2-1/2

[Event "SVK-ch GM 2018"]
[Site "Banska Stiavnica"]
[Date "2018.07.10"]
[Round "4"]
[White "Petenyi, Tamas"]
[Black "Zvarik, Martin"]
[Result "1-0"]
[ECO "C77"]
[WhiteElo "2450"]
[BlackElo "2280"]
[Annotator "ChessBase"]
[PlyCount "123"]
[EventDate "2018.07.07"]
[EventType "tourn"]
[EventCountry "SVK"]
[SourceTitle "playchess.com"]
[Source "ChessBase"]
[SourceQuality "1"]
[TimeControl "40/5400+30:1800+30"]

1. e4 {[%emt 0:00:00]} e5 {[%emt 0:09:41]} 2. Nf3 {[%emt 0:00:00]} Nc6 {[%emt 0:00:15]} 3. Bb5 {[%emt 0:00:00]} a6 {[%emt 0:01:15]} 4. Ba4 {[%emt 0:00:02]} Nf6 {[%emt 0:00:33]} 5. Nc3 {[%emt 0:01:26]} Bc5 {[%emt 0:06:27]} 6. O-O {[%emt 0:03:42]} b5 {[%emt 0:01:56]} 7. Bb3 {[%emt 0:00:03]} d6 {[%emt 0:00:21]} 8. d3 {[%emt 0:03:07]} Be6 {[%emt 0:06:23]} 9. Ne2 {[%emt 0:02:30]} Bb6 {[%emt 0:09:50]} 10. Ng3 {[%emt 0:01:01]} Nd4 {[%emt 0:06:29]} 11. Nxd4 {[%emt 0:01:25]} Bxd4 {[%emt 0:00:18]} 12. c3 {[%emt 0:00:42]} Bb6 {[%emt 0:00:51]} 13. h3 {[%emt 0:01:44]} O-O {[%emt 0:03:05]} 14. Qf3 {[%emt 0:03:07]} Qd7 {[%emt 0:08:19]} 15. Bg5 {[%emt 0:02:55]} Ne8 {[%emt 0:03:11]} 16. Nf5 {[%emt 0:06:17]} Kh8 {[%emt 0:04:07]} 17. d4 {[%emt 0:08:12]} f6 {[%emt 0:03:46]} 18. Be3 {[%emt 0:01:28]} g6 {[%emt 0:02:17]} 19. Ng3 {[%emt 0:01:15]} Ng7 {[%emt 0:00:33]} 20. d5 {[%emt 0:01:52]} Bg8 {[%emt 0:02:09]} 21. Bxb6 {[%emt 0:01:40]} cxb6 {[%emt 0:00:00]} 22. Qe3 {[%emt 0:00:56]} f5 {[%emt 0:01:07]} 23. exf5 {[%emt 0:02:56]} gxf5 {[%emt 0:00:44]} 24. f4 {[%emt 0:00:51]} Qc7 {[%emt 0:01:02]} 25. Rad1 {[%emt 0:00:54]} e4 {[%emt 0:04:08]} 26. Kh2 {[%emt 0:02:23]} Qc5 {[%emt 0:00:29]} 27. Rd4 {[%emt 0:03:47]} Rf6 {[%emt 0:01:21]} 28. Rf2 {[%emt 0:01:39]} Bf7 {[%emt 0:00:12]} 29. Nf1 {[%emt 0:01:20]} Rg8 {[%emt 0:00:40]} 30. a4 {[%emt 0:01:35]} Be8 {[%emt 0:01:57]} 31. axb5 {[%emt 0:06:04]} Bxb5 {[%emt 0:02:20]} 32. c4 {[%emt 0:00:32]} Bd7 {[%emt 0:00:30]} 33. Qc3 {[%emt 0:00:22]} Ne8 {[%emt 0:05:08]} 34. Bd1 {[%emt 0:01:02]} a5 {[%emt 0:00:04]} 35. Ne3 {[%emt 0:00:54]} Rg7 {[%emt 0:00:53]} 36. Bh5 {[%emt 0:01:13]} Kg8 {[%emt 0:01:42]} 37. Bxe8 {[%emt 0:02:43]} Bxe8 {[%emt 0:00:05]} 38. g4 {[%emt 0:02:43]} fxg4 {[%emt 0:01:54]} 39. Nxg4 {[%emt 0:01:26]} Rf8 {[%emt 0:02:51]} 40. Rg2 {[%emt 0:13:49]} h5 {[%emt 0:02:57]} 41. Ne3 {[%emt 0:31:29]} Rxg2+ {[%emt 0:35:37]} 42. Nxg2 {[%emt 0:04:55]} Bg6 {[%emt 0:00:13]} 43. Qe3 {[%emt 0:12:51]} Kg7 {[%emt 0:00:00]} 44. Qg1 {[%emt 0:00:00]} Rf6 {[%emt 0:00:00]} 45. Nh4 {[%emt 0:00:00]} Kf7 {[%emt 0:00:00]} 46. Qe3 {[%emt 0:00:00]} Bh7 {[%emt 0:00:00]} 47. b3 {[%emt 0:00:00]} Qa3 {[%emt 0:00:00]} 48. Rd1 {[%emt 0:00:00]} a4 {[%emt 0:00:00]} 49. Qxb6 {[%emt 0:00:00]} Qb2+ {[%emt 0:00:00]} 50. Kh1 {[%emt 0:00:00]} Qxb3 {[%emt 0:00:00]} 51. Qc7+ {[%emt 0:00:00]} Kf8 {[%emt 0:02:18]} 52. Qd8+ {[%emt 0:00:00]} Kf7 {[%emt 0:00:07]} 53. Qd7+ {[%emt 0:00:00]} Kf8 {[%emt 0:00:01]} 54. Rg1 {[%emt 0:00:00]} Qe3 {[%emt 0:01:04]} 55. c5 {[%emt 0:00:00]} Rf5 {[%emt 0:03:26]} 56. Qc8+ {[%emt 0:00:00]} Kf7 {[%emt 0:00:11]} 57. Qe6+ {[%emt 0:00:00]} Kf8 {[%emt 0:00:05]} 58. Qxd6+ {[%emt 0:00:00]} Kf7 {[%emt 0:00:10]} 59. Qd7+ {[%emt 0:00:00]} Kf8 {[%emt 0:00:00]} 60. Qg7+ {[%emt 0:00:00]} Ke8 {[%emt 0:00:01]} 61. Qh8+ {[%emt 0:00:00]} Rf8 {[%emt 0:00:42]} 62. Qe5+ {[%emt 0:00:00]} 1-0

[Event "SVK-ch GM 2018"]
[Site "Banska Stiavnica"]
[Date "2018.07.10"]
[Round "4"]
[White "Jurcik, Marian"]
[Black "Repka, Christopher"]
[Result "1/2-1/2"]
[ECO "C11"]
[WhiteElo "2445"]
[BlackElo "2519"]
[Annotator "ChessBase"]
[PlyCount "28"]
[EventDate "2018.07.07"]
[EventType "tourn"]
[EventCountry "SVK"]
[SourceTitle "playchess.com"]
[Source "ChessBase"]
[SourceQuality "1"]
[TimeControl "40/5400+30:1800+30"]

1. e4 {[%emt 0:02:06]} e6 {[%emt 0:04:43]} 2. d4 {[%emt 0:00:16]} d5 {[%emt 0:00:15]} 3. Nc3 {[%emt 0:00:53]} Nf6 {[%emt 0:00:38]} 4. e5 {[%emt 0:00:46]} Nfd7 {[%emt 0:00:06]} 5. f4 {[%emt 0:00:32]} c5 {[%emt 0:00:04]} 6. Nf3 {[%emt 0:00:27]} Nc6 {[%emt 0:00:42]} 7. Be3 {[%emt 0:00:35]} cxd4 {[%emt 0:01:53]} 8. Nxd4 {[%emt 0:00:28]} Bc5 {[%emt 0:00:08]} 9. a3 {[%emt 0:05:25]} O-O {[%emt 0:02:33]} 10. Be2 {[%emt 0:03:24]} Qb6 {[%emt 0:03:04]} 11. Na4 {[%emt 0:01:28]} Qa5+ {[%emt 0:00:05]} 12. Nc3 {[%emt 0:02:28]} Qb6 {[%emt 0:00:13]} 13. Na4 {[%emt 0:00:46]} Qa5+ {[%emt 0:00:05]} 14. Nc3 {[%emt 0:01:03]} Qb6 {[%emt 0:00:52]} 1/2-1/2